bitfinex/quotes_SOLUSD_20250805
["timestamp","ask_amount","ask_price","bid_price","bid_amount"]
[1754390498862,6.16615046,170.81,170.79,0.06]
[1754390499090,6.16615046,170.81,170.79,0.71]
[1754390499091,6.16615046,170.8,170.79,0.71]
[1754390499273,6.16615046,170.8,170.79,0.06]
[1754390499467,32.16615046,170.8,170.79,0.06]
[1754390500904,44.88710185,170.8,170.79,0.06]
[1754390501091,18.88710185,170.8,170.79,0.06]
[1754390501287,44.88710185,170.8,170.79,0.06]
[1754390501488,32.55480093,170.8,170.79,0.06]
[1754390501795,38.72095139,170.8,170.79,0.06]
[1754390501995,12.72095139,170.8,170.79,0.06]
[1754390502199,38.02095139,170.8,170.79,0.06]
[1754390502408,12.02095139,170.8,170.79,0.06]
[1754390503395,38.72095139,170.8,170.79,0.06]
[1754390503802,12.02095139,170.8,170.79,0.06]
[1754390504300,38.02095139,170.8,170.79,0.06]
[1754390504495,12.02095139,170.8,170.79,0.06]
[1754390504695,32.16615046,170.8,170.79,0.71]
[1754390505012,32.16615046,170.8,170.79,0.06]
[1754390505215,38.72095139,170.8,170.79,0.06]
[1754390505418,12.72095139,170.8,170.79,0.06]
[1754390505914,60.13547899,170.8,170.79,0.06]
[1754390506212,60.13547899,170.8,170.77,0.06]
[1754390506213,47.4145276,170.78,170.77,0.06]
[1754390506530,26.0,170.75,170.72,0.2]
[1754390506723,6.16615046,170.73,170.72,0.2]
[1754390506892,26.0,170.74,170.72,0.2]
[1754390507226,6.16615046,170.75,170.73,0.65]
[1754390507394,6.16615046,170.75,170.74,0.65]
[1754390507999,6.16615046,170.76,170.74,0.65]
[1754390508220,6.16615046,170.77,170.74,0.65]
[1754390508806,6.16615046,170.77,170.74,6.50678153]
[1754390509006,6.16615046,170.77,170.75,0.65]
[1754390509329,26.0,170.78,170.73,0.65]
[1754390509330,6.16615046,170.76,170.73,0.65]
[1754390509497,6.16615046,170.75,170.73,0.65]
[1754390509705,6.16615046,170.74,170.72,0.2]
[1754390509914,6.55598438,170.77,170.72,0.2]
[1754390510121,6.16615046,170.74,170.73,0.65]
[1754390511211,6.16615046,170.74,170.72,0.2]
[1754390511404,6.16615046,170.73,170.72,0.2]
[1754390511816,6.16615046,170.73,170.72,0.85]
[1754390512216,6.16615046,170.73,170.72,6.70751811]
[1754390512408,6.16615046,170.73,170.72,0.85]
[1754390512606,6.16615046,170.73,170.72,0.2]
[1754390513717,6.16615046,170.73,170.72,0.85]
[1754390514128,6.16615046,170.73,170.72,0.2]
[1754390516027,12.02335188,170.73,170.72,0.2]
[1754390516198,12.34335188,170.73,170.72,0.2]
[1754390518208,6.48615046,170.73,170.72,0.2]
[1754390518519,6.16615046,170.73,170.72,0.2]
[1754390518927,12.02335188,170.73,170.72,0.2]
[1754390519118,38.02335188,170.73,170.72,0.2]
[1754390519434,32.16615046,170.73,170.72,0.2]
[1754390522632,38.72335188,170.73,170.72,0.2]
[1754390522808,12.72335188,170.73,170.72,0.2]
[1754390523006,38.72335188,170.73,170.72,0.2]
[1754390523228,12.72335188,170.73,170.72,0.2]
[1754390523440,53.97172902,170.73,170.72,0.2]
[1754390523731,26.0,170.68,170.67,0.06]
[1754390523932,47.27236603,170.68,170.61,0.2]
[1754390524136,6.16615046,170.65,170.61,0.87]
[1754390525309,38.02609772,170.65,170.61,0.2]
[1754390527111,12.72609772,170.65,170.61,0.2]
[1754390527323,17.43238089,170.65,170.61,0.2]
[1754390527909,16.73238089,170.65,170.61,0.2]
[1754390528338,26.0,170.62,170.61,0.2]
[1754390528532,53.58067806,170.62,170.61,0.2]
[1754390528841,26.0,170.58,170.54,0.2]
[1754390529135,32.16615046,170.55,170.54,0.2]
[1754390529646,0.14216157,170.61,170.54,0.2]
[1754390529647,42.38,170.61,170.54,0.2]
[1754390529819,6.16615046,170.59,170.54,6.36615046]
[1754390530017,6.16615046,170.59,170.55,0.67]
[1754390530417,6.16615046,170.58,170.55,0.67]
[1754390530812,26.0,170.62,170.55,0.67]
[1754390531016,6.16615046,170.58,170.55,0.67]
[1754390531444,6.16615046,170.58,170.54,6.06367825]
[1754390531624,6.16615046,170.58,170.56,0.67]
[1754390531824,31.8612592,170.62,170.57,0.67]
[1754390532023,6.16615046,170.58,170.54,6.06367825]
[1754390532543,6.16615046,170.57,170.55,0.67]
[1754390532847,32.5612592,170.62,170.55,0.67]
[1754390533032,6.16615046,170.58,170.56,0.67]
[1754390533425,6.16615046,170.58,170.57,0.67]
[1754390533625,6.16615046,170.58,170.55,6.53313807]
[1754390533825,5.861421,170.61,170.56,0.67]
[1754390534059,6.16615046,170.58,170.57,0.67]
[1754390534350,6.16615046,170.58,170.55,0.67]
[1754390534521,6.16615046,170.58,170.56,0.67]
[1754390534846,6.16615046,170.59,170.57,0.67]
[1754390535024,6.16615046,170.59,170.54,12.22979397]
[1754390535223,26.0,170.61,170.54,12.22979397]
[1754390535224,26.0,170.61,170.58,0.67]
[1754390535423,6.16615046,170.59,170.58,0.67]
[1754390536444,26.0,170.6,170.58,0.67]
[1754390536648,6.16615046,170.59,170.58,0.67]
[1754390536949,6.16615046,170.59,170.58,6.53235197]
[1754390537148,32.16615046,170.6,170.58,0.67]
[1754390538025,26.0,170.61,170.58,6.53230692]
[1754390538324,4.70628317,170.65,170.59,0.67]
[1754390538534,6.55881119,170.69,170.61,6.16615046]
[1754390538744,0.7,170.71,170.65,6.16615046]
[1754390538954,6.16615046,170.7,170.66,0.67]
[1754390539164,32.16615046,170.69,170.66,0.67]
[1754390539750,6.16615046,170.69,170.66,0.67]
[1754390540256,26.0,170.68,170.66,0.67]
[1754390540759,6.16615046,170.69,170.67,0.67]
[1754390541123,26.0,170.69,170.67,0.67]
[1754390541323,32.16615046,170.69,170.67,0.67]
[1754390541723,32.16615046,170.69,170.64,12.69638626]
[1754390541924,32.16615046,170.69,170.65,0.67]
[1754390542626,26.0,170.69,170.65,0.67]
[1754390542954,32.16615046,170.69,170.65,0.67]
[1754390543451,32.16615046,170.69,170.66,0.67]
[1754390543660,6.16615046,170.67,170.63,5.86060274]
[1754390543834,6.16615046,170.67,170.63,6.53060274]
[1754390544233,6.16615046,170.67,170.64,0.67]
[1754390544732,6.16615046,170.67,170.65,0.67]
[1754390544937,6.86615046,170.66,170.61,0.67]
[1754390545126,6.16615046,170.65,170.62,0.67]
[1754390545325,30.73577989,170.7,170.63,6.83615046]
[1754390545552,14.81582885,170.73,170.59,15.10621557]
[1754390545553,0.73,170.73,170.65,12.02609772]
[1754390545752,0.73,170.73,170.66,6.83615046]
[1754390545922,6.16615046,170.71,170.67,0.67]
[1754390546126,6.16615046,170.71,170.66,6.16615046]
[1754390546326,6.16615046,170.71,170.68,0.67]
[1754390546535,6.16615046,170.7,170.68,0.67]
[1754390546949,6.58720545,170.73,170.68,0.67]
[1754390546950,6.16615046,170.71,170.68,0.67]
[1754390547451,6.16615046,170.71,170.68,5.85891308]
[1754390547656,6.16615046,170.71,170.67,5.85917432]
[1754390547852,31.88720545,170.73,170.65,14.64986815]
[1754390547853,6.16615046,170.7,170.66,0.67]
[1754390548042,6.16615046,170.68,170.64,42.36]
[1754390548241,6.16615046,170.68,170.65,0.67]
[1754390548444,6.16615046,170.69,170.65,0.67]
[1754390548626,6.16615046,170.69,170.64,48.52615046]
[1754390548832,6.16615046,170.69,170.65,0.65]
[1754390549032,6.55804966,170.71,170.66,0.65]
[1754390549250,6.55804966,170.71,170.65,5.85981578]
[1754390549251,6.16615046,170.69,170.65,5.85981578]
[1754390549447,6.16615046,170.69,170.66,0.65]
[1754390550757,6.16615046,170.7,170.67,0.65]
[1754390550928,6.16615046,170.71,170.68,0.65]
[1754390552434,32.16615046,170.72,170.69,0.65]
[1754390552778,0.03,170.73,170.7,49.15615046]
[1754390553275,0.03,170.73,170.72,6.16615046]
[1754390553635,0.03,170.73,170.72,6.81615046]
[1754390554066,0.03,170.75,170.72,22.0645276]
[1754390554262,0.03,170.75,170.7,74.50615046]
[1754390554263,6.16615046,170.84,170.77,0.14216157]
[1754390554556,26.0,170.82,170.78,49.15615046]
[1754390554737,26.0,170.82,170.78,48.50615046]
[1754390554939,26.0,170.83,170.79,0.65]
[1754390555132,6.16615046,170.84,170.8,0.65]
[1754390555343,3.91575148,170.85,170.8,0.65]
[1754390555549,6.16615046,170.84,170.8,0.65]
[1754390555753,6.16615046,170.84,170.79,6.16615046]
[1754390555951,6.16615046,170.83,170.78,48.50615046]
[1754390556156,6.16615046,170.83,170.79,0.65]
[1754390556354,6.16615046,170.83,170.79,6.50486892]
[1754390556556,32.16615046,170.83,170.79,0.65]
[1754390556760,32.16615046,170.83,170.79,6.50507748]
[1754390557449,32.16615046,170.83,170.8,0.65]
[1754390557653,5.85318935,170.85,170.81,0.65]
[1754390557654,6.16615046,170.85,170.81,0.65]
[1754390557860,6.16615046,170.86,170.82,0.65]
[1754390558157,6.16615046,170.85,170.81,42.32]
[1754390558352,6.16615046,170.85,170.81,48.82412552]
[1754390559047,6.57248355,170.87,170.81,48.82412552]
[1754390559250,0.03,170.83,170.81,48.82412552]
[1754390559848,0.03,170.83,170.81,42.32]
[1754390560757,6.88615046,170.82,170.76,6.81615046]
[1754390560969,6.16615046,170.81,170.79,42.32]
[1754390562384,6.16615046,170.81,170.79,42.97]
[1754390562860,6.16615046,170.8,170.79,42.32]
[1754390563277,6.16615046,170.8,170.76,6.50607027]
[1754390563452,6.16615046,170.8,170.78,42.3]
[1754390564543,6.88615046,170.79,170.74,6.50678666]
[1754390564748,6.16615046,170.76,170.75,42.3]
[1754390565365,6.16615046,170.77,170.75,42.95]
[1754390565551,6.16615046,170.78,170.76,0.65]
[1754390566166,6.16615046,170.78,170.75,48.15632432]
[1754390566484,6.16615046,170.78,170.75,48.80632432]
[1754390567173,6.57456907,170.81,170.75,48.80632432]
[1754390567344,6.16615046,170.78,170.75,48.80632432]
[1754390567550,6.16615046,170.77,170.75,42.3]
[1754390568270,6.16615046,170.77,170.76,42.3]
[1754390568774,6.16615046,170.77,170.73,6.50708635]
[1754390568980,6.16615046,170.77,170.74,42.3]
[1754390569674,6.16615046,170.77,170.63,10.0]
[1754390569675,6.16615046,170.75,170.7,0.65]
[1754390569881,6.16615046,170.71,170.68,0.65]
[1754390570056,6.16615046,170.71,170.69,42.28]
[1754390570585,6.16615046,170.71,170.7,0.65]
[1754390570970,26.0,170.74,170.69,42.28]
[1754390571180,6.16615046,170.7,170.69,42.28]
[1754390571553,26.0,170.73,170.69,42.93]
[1754390571773,6.16615046,170.74,170.7,0.65]
[1754390571978,6.16615046,170.75,170.7,6.81615046]
[1754390572179,26.0,170.77,170.7,6.81615046]
[1754390572180,6.16615046,170.77,170.71,0.65]
[1754390572383,6.16615046,170.77,170.72,48.44615046]
[1754390572586,6.16615046,170.78,170.73,6.81615046]
[1754390572881,6.16615046,170.78,170.74,0.65]
[1754390573085,6.16615046,170.78,170.73,6.16615046]
[1754390573086,6.16615046,170.78,170.75,48.78650169]
[1754390573288,6.16615046,170.8,170.76,0.65]
[1754390573468,6.16615046,170.8,170.77,0.65]
[1754390573669,6.16615046,170.8,170.78,42.93]
[1754390573984,6.16615046,170.8,170.78,42.28]
[1754390575974,6.16615046,170.8,170.78,40.62684709]
[1754390576296,32.60387766,170.83,170.78,40.62684709]
[1754390576496,6.16615046,170.8,170.78,40.62684709]
[1754390578357,6.16615046,170.8,170.78,47.1322445]
[1754390578792,6.16615046,170.81,170.78,46.4822445]
[1754390578991,6.16615046,170.82,170.79,0.7]
[1754390579300,6.16615046,170.82,170.73,0.7]
[1754390579301,26.0,170.77,170.73,0.7]
[1754390579595,6.16615046,170.75,170.74,42.28]
[1754390581399,32.56587498,170.77,170.74,42.28]
[1754390581572,6.16615046,170.76,170.74,42.28]
[1754390581888,6.16615046,170.78,170.75,0.7]
[1754390582087,0.03,170.8,170.75,0.7]
[1754390582088,6.16615046,170.77,170.75,0.7]
[1754390582483,6.16615046,170.76,170.75,0.7]
[1754390582683,6.16615046,170.76,170.74,42.28]
[1754390583191,32.16615046,170.77,170.75,0.7]
[1754390583388,32.16615046,170.77,170.74,48.1368555]
[1754390583599,6.16615046,170.76,170.74,48.1368555]
[1754390584195,6.16615046,170.76,170.74,48.8368555]
[1754390584383,32.16615046,170.77,170.74,48.8368555]
[1754390584899,6.16615046,170.77,170.75,0.7]
[1754390585075,32.59503741,170.8,170.75,0.7]
[1754390585276,6.16615046,170.77,170.75,6.55644595]
[1754390586002,26.74,170.8,170.76,0.7]
[1754390586003,0.03,170.79,170.76,0.7]
[1754390586174,0.03,170.79,170.78,6.16615046]
[1754390586925,0.03,170.79,170.78,6.86615046]
[1754390587523,0.03,170.79,170.78,12.72163705]
[1754390588799,0.03,170.79,170.78,0.7]
[1754390589003,0.03,170.79,170.76,5.8561724]
[1754390589204,0.03,170.79,170.77,42.26]
[1754390589431,0.03,170.79,170.78,5.85548659]
[1754390589721,0.03,170.79,170.78,6.55548659]
[1754390589924,0.03,170.79,170.77,48.11572132]
[1754390590420,0.03,170.79,170.77,48.81572132]
[1754390590914,0.03,170.79,170.77,48.11572132]
[1754390591221,0.03,170.79,170.77,48.81572132]
[1754390591421,0.03,170.79,170.78,0.7]
[1754390591810,0.03,170.79,170.78,10.57806238]
[1754390593411,0.03,170.79,170.78,16.43354897]
[1754390594016,0.03,170.79,170.78,103.93354897]
[1754390594327,0.03,170.79,170.78,104.66125919]
[1754390594524,0.03,170.79,170.78,106.80017421]
[1754390597524,0.03,170.79,170.78,106.21462556]
[1754390603327,0.03,170.79,170.78,104.07571054]
[1754390603526,0.03,170.79,170.78,106.21550435]
[1754390603835,0.03,170.79,170.78,106.27550435]
[1754390605836,0.03,170.79,170.78,96.39744197]
[1754390606013,0.03,170.79,170.78,106.27550435]
[1754390607538,0.03,170.8,170.79,102.60621557]
[1754390607836,1e-08,170.83,170.82,41.24837714]
[1754390608041,1e-08,170.83,170.82,84.03378868]
[1754390608342,1e-08,170.83,170.82,94.61185106]
[1754390608726,0.03,170.88,170.84,0.14216157]
[1754390608922,0.03,170.88,170.87,6.16709079]
[1754390609127,0.03,170.88,170.87,42.2]
[1754390609334,0.03,170.88,170.87,54.2194932]
[1754390609518,0.03,170.88,170.87,70.13787034]
[1754390610037,0.03,170.9,170.89,21.41546793]
[1754390610344,0.03,170.9,170.89,63.61546793]
[1754390610520,0.03,170.9,170.89,64.28546793]
[1754390611427,0.03,170.9,170.89,70.1371854]
[1754390613626,0.1,170.95,170.9,15.24837714]
[1754390613821,0.1,170.95,170.91,42.18]
[1754390614021,0.1,170.95,170.91,42.85]
[1754390614236,0.1,170.95,170.94,6.16709079]
[1754390614431,0.1,170.95,170.94,48.34709079]
[1754390614940,0.1,170.95,170.94,54.86709664]
[1754390615242,0.1,170.95,170.94,70.11547378]
[1754390618441,0.1,170.95,170.94,96.11547378]
[1754390619163,0.1,170.95,170.94,12.01709664]
[1754390619365,0.1,170.95,170.94,54.17709664]
[1754390620050,0.03,170.96,170.95,15.10621557]
[1754390620228,0.03,170.96,170.95,21.41546793]
[1754390620431,0.03,170.96,170.95,22.08546793]
[1754390620923,0.1,170.97,170.96,0.14216157]
[1754390621124,0.1,170.97,170.96,54.88350597]
[1754390621336,0.1,170.98,170.97,15.10621557]
[1754390621548,0.1,170.98,170.97,21.41546793]
[1754390622664,0.1,170.98,170.97,15.24837714]
[1754390622850,0.1,170.98,170.97,21.41546793]
[1754390623646,0.1,170.98,170.97,27.26444728]
[1754390625662,0.1,170.98,170.97,54.13607014]
[1754390627971,0.76,170.98,170.94,5.85000585]
[1754390628145,6.92709079,170.98,170.95,42.12]
[1754390628346,0.66,170.97,170.95,42.12]
[1754390629471,6.82709079,170.97,170.96,5.84932147]
[1754390630163,6.82709079,170.97,170.95,42.12]
[1754390630378,0.1,170.98,170.95,42.12]
[1754390630379,6.82709079,170.96,170.95,47.9695481]
[1754390631077,6.82709079,170.96,170.92,30.40273986]
[1754390631078,6.82709079,170.96,170.88,15.16621557]
[1754390631250,6.16709079,170.92,170.89,42.12]
[1754390631451,6.82709079,170.92,170.89,47.97171747]
[1754390632264,6.16709079,170.92,170.89,47.97171747]
[1754390632466,6.16709079,170.9,170.89,42.12]
[1754390632661,6.82709079,170.9,170.89,42.1]
[1754390635061,0.66,170.9,170.89,42.1]
[1754390635267,6.82709079,170.9,170.89,42.1]
[1754390636177,6.82709079,170.9,170.88,5.91202663]
[1754390636178,12.67846586,170.9,170.88,0.06]
[1754390636355,6.82709079,170.89,170.88,42.16]
[1754390637587,32.82709079,170.89,170.88,0.06]
[1754390637789,38.67880826,170.89,170.88,0.06]
[1754390639964,32.16709079,170.89,170.88,42.16]
[1754390640169,32.86709079,170.89,170.88,42.16]
[1754390640362,12.71880826,170.89,170.88,0.06]
[1754390642682,26.0,170.87,170.83,42.1]
[1754390642907,6.16709079,170.84,170.83,42.1]
[1754390644571,6.16709079,170.84,170.83,42.76]
[1754390645270,6.16709079,170.84,170.83,42.1]
[1754390645473,26.0,170.87,170.83,48.61373387]
[1754390645691,32.16709079,170.88,170.84,0.66]
[1754390645857,32.16709079,170.88,170.85,0.66]
[1754390646191,32.16709079,170.88,170.86,42.1]
[1754390646563,6.16709079,170.88,170.86,42.76]
[1754390646763,6.16709079,170.88,170.87,0.66]
[1754390647390,6.16709079,170.88,170.86,42.1]
[1754390647768,6.19709079,170.88,170.86,42.1]
[1754390647969,6.19709079,170.88,170.86,47.95265711]
[1754390648294,6.19709079,170.88,170.86,48.61265711]
[1754390648994,6.19709079,170.88,170.86,42.76]
[1754390649181,6.19709079,170.88,170.86,42.1]
[1754390649382,6.19709079,170.88,170.86,47.95273321]
[1754390649583,6.19709079,170.88,170.86,48.61273321]
[1754390650598,6.19709079,170.88,170.86,47.95273321]
[1754390650903,6.19709079,170.88,170.86,42.1]
[1754390651197,6.19709079,170.88,170.86,48.61272139]
[1754390651392,6.16709079,170.87,170.86,42.1]
[1754390652096,6.19709079,170.88,170.86,48.61274493]
[1754390652678,0.03,170.88,170.87,0.66]
[1754390653576,0.03,170.88,170.86,42.1]
[1754390653976,6.19709079,170.88,170.86,42.1]
[1754390654201,6.16709079,170.87,170.86,42.1]
[1754390654594,0.03,170.88,170.86,42.1]
[1754390654795,6.16709079,170.87,170.86,42.1]
[1754390655686,6.86709079,170.87,170.86,42.1]
[1754390655881,0.7,170.87,170.86,42.1]
[1754390656088,6.86709079,170.87,170.86,42.1]
[1754390656283,6.16709079,170.87,170.86,42.1]
[1754390658093,6.19709079,170.88,170.86,48.61274493]
[1754390658413,6.86709079,170.87,170.81,0.06]
[1754390658585,6.86709079,170.87,170.82,42.08]
[1754390658586,6.16709079,170.83,170.82,42.08]
[1754390658774,26.7,170.87,170.82,42.74]
[1754390658775,6.16709079,170.84,170.82,42.74]
[1754390658980,6.16709079,170.84,170.82,42.08]
[1754390659182,32.16709079,170.87,170.83,0.66]
[1754390659400,6.16709079,170.87,170.84,42.08]
[1754390659590,6.16709079,170.87,170.85,0.66]
[1754390659897,6.16709079,170.87,170.86,42.74]
[1754390660418,6.16709079,170.87,170.86,42.08]
[1754390663827,6.86709079,170.87,170.86,42.08]
[1754390664325,38.7194932,170.87,170.86,42.08]
[1754390664827,26.0,170.85,170.84,42.06]
[1754390665012,32.16709079,170.85,170.84,42.06]
[1754390666604,32.86709079,170.85,170.84,42.06]
[1754390666807,38.72017829,170.85,170.81,0.06]
[1754390667105,0.7,170.84,170.82,42.06]
[1754390667522,31.8530875,170.85,170.82,42.06]
[1754390667733,32.5530875,170.85,170.82,42.06]
[1754390668220,6.16709079,170.83,170.82,42.06]
[1754390668734,6.86709079,170.83,170.82,42.06]
[1754390668943,6.86709079,170.83,170.81,0.06]
[1754390669106,6.16709079,170.82,170.81,0.06]
[1754390674236,6.167091,170.87,170.81,0.73]
[1754390674542,6.167091,170.87,170.83,6.16709079]
[1754390674716,6.167091,170.87,170.84,42.73]
[1754390674916,6.167091,170.87,170.85,6.5230875]
[1754390675129,6.167091,170.87,170.85,12.02017829]
[1754390675336,0.03,170.88,170.86,0.67]
[1754390675642,0.03,170.88,170.87,42.06]
[1754390676013,0.03,170.88,170.87,42.73]
[1754390676933,0.03,170.88,170.87,48.58240241]
[1754390677929,0.03,170.88,170.87,42.06]
[1754390678321,0.03,170.88,170.87,42.04]
[1754390679138,6.19709079,170.88,170.87,42.04]
[1754390679364,6.90709079,170.88,170.87,42.04]
[1754390679641,6.90709079,170.88,170.86,42.04]
[1754390679941,32.16709079,170.87,170.86,42.04]
[1754390680151,6.16709079,170.87,170.86,42.71]
[1754390680464,26.0,170.86,170.83,42.04]
[1754390680645,6.16709079,170.84,170.83,42.04]
[1754390681624,6.16709079,170.86,170.83,48.56377275]
[1754390681940,6.16709079,170.86,170.84,0.67]
[1754390682249,6.16709079,170.86,170.85,42.71]
[1754390684731,0.03,170.88,170.85,56.86987365]
[1754390684938,0.03,170.88,170.86,0.67]
[1754390685143,0.03,170.88,170.87,42.02]
[1754390685547,0.03,170.88,170.87,42.69]
[1754390686128,0.03,170.88,170.87,48.54240241]
[1754390686343,0.03,170.88,170.85,14.63271875]
[1754390686344,0.03,170.88,170.85,0.67]
[1754390686536,0.03,170.88,170.87,42.02]
[1754390687534,26.03,170.88,170.87,42.02]
[1754390687751,32.19709079,170.88,170.87,42.02]
[1754390688128,0.03,170.88,170.87,48.54240241]
[1754390690739,0.03,170.88,170.87,136.04240241]
[1754390692260,0.03,170.88,170.87,136.10240241]
[1754390692749,0.03,170.88,170.87,142.2694932]
[1754390697556,0.03,170.9,170.88,87.5]
[1754390697745,0.03,170.9,170.89,47.85171747]
[1754390697938,0.03,170.9,170.89,136.02171747]
[1754390700251,6.89709079,170.9,170.87,0.06]
[1754390700561,0.7,170.89,170.88,41.98]
[1754390700863,26.0,170.86,170.85,0.06]
[1754390701165,32.86709079,170.86,170.85,0.06]
[1754390701540,32.16709079,170.86,170.85,42.04]
[1754390701754,32.86709079,170.86,170.85,42.04]
[1754390703156,38.71983572,170.86,170.85,42.04]
[1754390703563,38.71983572,170.86,170.85,0.06]
[1754390704478,53.82605129,170.86,170.85,0.06]
[1754390704658,57.9008386,170.86,170.85,0.06]
[1754390704840,57.9008386,170.86,170.81,0.06]
[1754390704841,15.24837714,170.85,170.81,0.06]
[1754390705044,32.16709079,170.82,170.81,0.06]
[1754390705549,44.88829702,170.82,170.81,0.06]
[1754390705945,38.72120623,170.82,170.81,0.06]
[1754390706349,32.16709079,170.82,170.81,0.06]
[1754390706549,32.86709079,170.82,170.81,0.06]
[1754390707362,32.16709079,170.82,170.81,0.06]
[1754390709354,6.16709079,170.82,170.81,0.06]
[1754390710356,6.16709079,170.84,170.81,0.75]
[1754390710968,6.16709079,170.82,170.81,0.06]
[1754390711361,6.86709079,170.82,170.81,0.06]
[1754390712753,12.72120623,170.82,170.81,0.06]
[1754390714756,26.0,170.8,170.79,0.06]
[1754390714972,38.33418158,170.8,170.79,0.06]
[1754390715146,39.03418158,170.8,170.79,0.06]
[1754390716073,54.28255872,170.8,170.79,0.06]
[1754390717072,60.13735965,170.8,170.79,0.06]
[1754390718152,15.24837714,170.79,170.78,0.06]
[1754390718380,26.0,170.77,170.76,0.06]
[1754390718554,32.16709079,170.77,170.76,0.06]
[1754390718760,32.86709079,170.77,170.76,0.06]
[1754390719250,38.72292026,170.77,170.76,0.06]
[1754390719575,20.80409313,170.8,170.76,0.06]
[1754390719576,5.85558373,170.78,170.76,0.06]
[1754390719785,6.16709079,170.77,170.76,0.75]
[1754390719982,3.04556,170.83,170.76,0.75]
[1754390719983,6.16709079,170.78,170.76,0.75]
[1754390720551,5.85411544,170.82,170.76,0.75]
[1754390720877,6.16709079,170.78,170.76,0.75]
[1754390721172,6.16709079,170.78,170.77,0.69]
[1754390721561,6.16709079,170.78,170.76,0.06]
[1754390721747,6.16709079,170.77,170.76,0.06]
[1754390723788,12.72292026,170.77,170.76,0.06]
[1754390724577,6.16709079,170.77,170.76,0.06]
[1754390725458,31.85527276,170.79,170.76,0.06]
[1754390725763,6.16709079,170.77,170.76,0.06]
[1754390726388,6.16709079,170.77,170.76,0.75]
[1754390729102,6.16709079,170.78,170.76,0.75]
[1754390729275,6.16709079,170.78,170.76,6.60616992]
[1754390729592,32.16709079,170.78,170.77,0.69]
[1754390730506,26.0,170.78,170.77,0.69]
[1754390730666,6.16709079,170.79,170.77,0.69]
[1754390730868,6.16709079,170.79,170.78,42.65]
[1754390731190,13.07029342,170.84,170.78,48.81709079]
[1754390731191,6.16709079,170.83,170.78,48.81709079]
[1754390731497,12.40029342,170.84,170.82,6.16709079]
[1754390731666,12.40029342,170.84,170.81,6.16709079]
[1754390731987,12.40029342,170.84,170.82,42.65]
[1754390732289,12.40029342,170.84,170.83,0.69]
[1754390732766,12.40029342,170.84,170.83,6.54377275]
[1754390733279,12.40029342,170.84,170.83,0.69]
[1754390733977,12.40029342,170.84,170.83,6.54377275]
[1754390734163,12.40029342,170.84,170.83,0.69]
[1754390735602,12.40029342,170.84,170.83,6.54377275]
[1754390736300,12.43029342,170.84,170.83,6.54377275]
[1754390736477,12.43029342,170.84,170.83,12.71086354]
[1754390737479,12.43029342,170.84,170.83,0.69]
[1754390737695,12.43029342,170.84,170.82,5.85411002]
[1754390738002,12.43029342,170.84,170.83,41.94]
[1754390739505,12.43029342,170.84,170.83,47.79377275]
[1754390740100,12.43029342,170.84,170.83,48.48377275]
[1754390741211,12.43029342,170.84,170.83,47.79377275]
[1754390741389,12.43029342,170.84,170.83,41.94]
[1754390741588,12.43029342,170.84,170.83,42.63]
[1754390741791,12.43029342,170.84,170.83,48.48377275]
[1754390742088,12.43029342,170.84,170.83,135.98377275]
[1754390742493,12.43029342,170.84,170.83,145.85765125]
[1754390742885,12.43029342,170.84,170.83,135.98377275]
[1754390743618,0.03,170.86,170.84,15.10621557]
[1754390743790,0.03,170.86,170.85,51.7938785]
[1754390744290,0.03,170.86,170.85,52.4838785]
[1754390744914,0.03,170.86,170.85,58.336966]